Cogmind - Beta 9.2 @@@ ROGUE MODE // 2019.12.11 @ 15:38:58 Player: sweetandcool Result: Destroyed self with Missile Launcher Performance ------------- Evolutions (2) 1000 Regions Visited (7) 1400 Robots Destroyed (89) 445 Value Destroyed (2687) 2687 Prototype IDs (29) 580 Alien Tech Used (0) 0 Bonus (1206) 1206 TOTAL SCORE: 7318 Bonus ------- High Alert Combat Kills 184 Follower Combat Kills 188 Entered Garrisons 200 Used RIF Installer 500 Aligned with FarCom 300 Friendly Fire -166 Cogmind --------- Core Integrity 0/550 Matter 71/300 Energy 15/100 System Corruption 5% Temperature Cool (0) Movement Core (200) Ox3 Location -8/Materials Parts ------- > --- POWER (1) -------- (None) > --- PROPULSION (2) --- (None) > --- UTILITY (6) ------ Improved Heat Sink Medium Storage Unit Large Storage Unit Large Storage Unit Advanced Weight Redist. System > --- WEAPON (2) ------- Missile Launcher > --- INVENTORY (20) --- Improved Melee Analysis Suite Microactuators Cloak of Protection Hacking Suite Relay Coupler [Swarmer] (43) Heavy Particle Gun Advanced Beam Rifle Enhanced Autogun Heavy Mace Spear Spear Spear Peak State ------------ > --- POWER ------------ Light Nuclear Core > --- PROPULSION ------- Light Treads Improved Airjet > --- UTILITY ---------- Improved Heat Sink Medium Storage Unit Large Storage Unit Large Storage Unit Heavy Armor Plating > --- WEAPON ----------- Heavy Particle Gun High-powered Shotgun > --- INVENTORY -------- Light Nuclear Core Advanced Weight Redist. System Improved Melee Analysis Suite Microactuators Cloak of Protection Hacking Suite Relay Coupler [Swarmer] Electrolaser Advanced Beam Rifle Advanced Beam Rifle EM Pulse Cannon Enhanced Autogun Gauss Rifle Rocket Launcher Missile Launcher Heavy Mace Spear Spear Spear Signal Generator [Rating: 35] Favorites ----------- Power Light Nuclear Core Engine Ion Engine Power Core Light Nuclear Core Propulsion Light Treads Treads Light Treads Leg Carbon-fiber Leg Hover Unit Improved Airjet Flight Unit Improved Flight Unit Utility Large Storage Unit Device Improved Heat Sink Storage Large Storage Unit Processor Improved Signal Interpreter Protection Light Armor Plating Weapon EM Pulse Gun Energy Gun EM Pulse Gun Energy Cannon EM Pulse Cannon Ballistic Gun High-powered Shotgun Launcher Rocket Launcher Build | -11 -10 -10 -10 -9 -8 -8 -8 ------- Run | Scr Mat Min Exi Min Mat Gar Mat Slots Evolved 4 | . . . . . 4 . . Power . | . . . . . . . . Propulsion . | . . . . . . . . Utility 4 | . . . . . 4 . . Weapon . | . . . . . . . . Parts Attached 71 | 7 4 3 . . 17 7 33 Power 7 | 1 . . . . 2 1 3 Engine 2 | 1 . . . . 1 . . Core 5 | . . . . . 1 1 3 Reactor . | . . . . . . . . Propulsion 22 | 2 . 1 . . 5 1 13 Treads 17 | 2 . . . . 4 1 10 Leg 2 | . . 1 . . 1 . . Wheel . | . . . . . . . . Hover 1 | . . . . . . . 1 Flight 2 | . . . . . . . 2 Utility 22 | 2 3 . . . 5 4 8 Device 6 | . . . . . 1 . 5 Storage 7 | 2 3 . . . 1 1 . Processor 2 | . . . . . 1 . 1 Hackware . | . . . . . . . . Protection 7 | . . . . . 2 3 2 Artifact . | . . . . . . . . Weapon 20 | 2 1 2 . . 5 1 9 Energy Gun 9 | 1 1 1 . . 3 1 2 Energy Cannon 2 | . . . . . . . 2 Ballistic Gun 4 | 1 . . . . 1 . 2 Ballistic Cannon . | . . . . . . . . Launcher 5 | . . 1 . . 1 . 3 Special Weapon . | . . . . . . . . Impact Weapon . | . . . . . . . . Slashing Weapon . | . . . . . . . . Piercing Weapon . | . . . . . . . . Special Melee Weapon . | . . . . . . . . Unidentified Prototypes 7 | . . . . . 3 . 4 Parts Lost 20 | . 1 2 . . 1 . 16 Power 2 | . . . . . . . 2 Propulsion 4 | . . 1 . . . . 3 Utility 4 | . . . . . . . 4 Weapon 10 | . 1 1 . . 1 . 7 Highest Loss Streak 10 | . 1 1 . . 1 . 10 Average Slot Usage (%) 97 | . 99 99 100 100 98 100 91 Engine 6 | . 14 14 14 14 9 . . Core 4 | . . . . . . 9 8 Treads 18 | . 28 21 14 14 11 18 17 Leg 3 | . . 6 14 14 6 . . Device 5 | . . . . . 9 9 11 Storage 27 | . 28 28 28 28 26 27 27 Processor 1 | . . . . . 8 4 . Protection 5 | . . . . . 9 14 7 Energy Gun 11 | . 13 13 14 14 8 14 6 Ballistic Gun 5 | . 14 7 . . 1 . 7 Launcher 4 | . . 6 14 14 8 3 . Naked Turns . | . . . . . . . . Heaviest Build 71 | 16 32 35 35 35 44 60 71 Greatest Support 40 | 40 40 40 20 20 40 40 40 Greatest Overweight (x) 3 | . . 1 1 1 1 1 3 Average Overweight (x) . | . . . 1 1 . 1 1 Largest Inventory Capacity 20 | 8 14 14 14 14 16 20 20 Average Capacity 15 | 5 10 14 14 14 15 16 20 Most Carried 20 | 5 11 14 14 14 16 18 20 Average Carried 15 | 3 8 13 13 14 14 16 19 Final Capacity 20 | 8 14 14 14 14 16 20 20 Final Carried 18 | 4 11 13 14 14 16 18 12 Class Distribution -------------------- 49% | Mutant 34% | Scavenger-Mutant 15% | Hauler-Mutant Dominant Class ---------------- Mutant | -10/Materials Mutant | -10/Mines Mutant | -10/Exiles Mutant | -9/Mines Mutant | -8/Materials Scavenger-Mutant | -8/Garrison Scavenger-Mutant | -8/Materials Resources | -11 -10 -10 -10 -9 -8 -8 -8 ----------- Run | Scr Mat Min Exi Min Mat Gar Mat Matter Collected 1364 | 270 66 94 . 29 310 110 485 Remotely . | . . . . . . . . Salvage Created 3179 | 110 501 157 . 107 445 621 1238 Parts 170 | 4 15 10 . 17 32 31 61 Haulers Intercepted 3 | . . . . . 1 . 2 Recyclers Shooed 2 | . 2 . . . . . . Parts Field Recycled . | . . . . . . . . Retrieved Matter . | . . . . . . . . Parts Self-Destructed . | . . . . . . . . Prevented . | . . . . . . . . Kills | -11 -10 -10 -10 -9 -8 -8 -8 ------- Run | Scr Mat Min Exi Min Mat Gar Mat Combat Hostiles Destroyed 59 | . 6 5 . 6 8 11 23 Guns 33 | . 6 1 . . 2 8 16 AOE 26 | . . 4 . 6 6 3 7 Classes Destroyed 15 | 2 2 1 . 2 4 . 4 Worker 6 | 2 . . . 1 1 . 2 Builder 2 | . . . . . . . 2 Tunneler 1 | . . . . 1 . . . Hauler 3 | . . . . . 1 . 2 Recycler 11 | 1 4 1 . . 2 . 3 Mechanic 1 | . . . . . . . 1 Operator 2 | . . . . . 1 . 1 Watcher 3 | . 1 . . . . . 2 Swarmer 18 | . . 4 . 3 3 5 3 Grunt 23 | . 6 1 . 2 2 2 10 Brawler 1 | . . . . . . . 1 Duelist 2 | . . . . . . . 2 Sentry 10 | . . . . . 2 3 5 Hunter 4 | . . . . . 1 1 2 Assembled 1 | . . . . 1 . . . Thug 1 | . . . . . 1 . . Best Kill Streak 10 | 2 4 4 . 5 10 2 6 Combat Bots Only 5 | . 2 3 . 3 5 2 3 Max Kills in Single Turn 3 | 1 1 2 . 3 2 1 3 Gunslinging . | . . . . . . . . Exploded 3 | . . 2 . 3 2 1 2 Melee . | . . . . . . . . Uniques/NPCs Destroyed . | . . . . . . . . Combat | -11 -10 -10 -10 -9 -8 -8 -8 -------- Run | Scr Mat Min Exi Min Mat Gar Mat Damage Taken 4237 | . 311 164 . 84 397 502 2779 Core 629 | . 42 17 . 16 65 81 408 Absorbed by Shields . | . . . . . . . . Core Remaining (%) 85 | 100 . . . 70 . . . Volleys Fired 200 | 14 42 8 . 10 21 21 84 Largest 2 | 1 2 2 . 1 1 2 2 Hottest 100 | 50 70 60 . 40 61 100 88 Shots Fired 312 | 14 77 11 . 10 21 38 141 Gun 265 | 14 77 6 . 1 12 36 119 Cannon 10 | . . . . . . . 10 Launcher 37 | . . 5 . 9 9 2 12 Special . | . . . . . . . . Kinetic 114 | . 42 3 . . . . 69 Thermal 77 | 14 31 . . . 2 . 30 Explosive 37 | . . 5 . 9 9 2 12 Electromagnetic 84 | . 4 3 . 1 10 36 30 Robot Hit Streak 21 | 8 9 3 . 2 4 16 21 Robot Miss Streak 4 | 2 3 2 . 1 2 3 4 Penetration Max . | . . . . . . . . Secondary Targets . | . . . . . . . . Shots Hit Robots 224 | 12 51 5 . 3 9 30 114 Core Hits 169 | 4 23 6 . 14 26 26 70 Critical Hits 5 | . . . . . 1 1 3 Critical Kills 1 | . . . . . . . 1 Critical Parts Destroyed 4 | . . . . . 1 1 2 Melee Attacks . | . . . . . . . . Impact . | . . . . . . . . Slashing . | . . . . . . . . Piercing . | . . . . . . . . Sneak Attacks . | . . . . . . . . Combat Hostiles . | . . . . . . . . Follow-up Attacks . | . . . . . . . . Damage Inflicted 7434 | 149 885 359 . 576 776 1063 3626 Guns 3335 | 149 565 40 . . 153 610 1818 Cannons 210 | . . . . . . . 210 Explosions 3875 | . 320 315 . 576 623 453 1588 Melee . | . . . . . . . . Ramming 14 | . . 4 . . . . 10 Kinetic 1214 | . 235 17 . . . . 962 Thermal 1703 | 149 605 47 . 5 36 331 530 Explosive 3060 | . . 268 . 571 587 122 1512 Electromagnetic 1443 | . 45 23 . . 153 610 612 Impact . | . . . . . . . . Slashing . | . . . . . . . . Piercing . | . . . . . . . . Highest Corruption 5 | . . . . . . . 5 Average Corruption 4 | . . . . . . . 4 Corruption Purged . | . . . . . . . . Effects 21 | . . . . . . . 21 Message Errors 5 | . . . . . . . 5 Matter Fused 4 | . . . . . . . 4 Heat Flow Errors 1 | . . . . . . . 1 Energy Discharges 2 | . . . . . . . 2 Parts Rejected 1 | . . . . . . . 1 Data Loss (minor) 3 | . . . . . . . 3 Targeting Errors 2 | . . . . . . . 2 Weapon Failures 3 | . . . . . . . 3 Overload Shots . | . . . . . . . . Overflow Damage 215 | . 103 18 . 16 6 11 61 Projectiles . | . . . . . . . . Explosions 215 | . 103 18 . 16 6 11 61 Melee . | . . . . . . . . Knockbacks . | . . . . . . . . Impact . | . . . . . . . . Kinetic . | . . . . . . . . Secondary . | . . . . . . . . Self-Inflicted Damage 678 | . 80 74 . 86 63 163 212 Shots 17 | . 1 2 . 2 2 5 5 Rammed 3 | . . 2 . . . . 1 Targets Rammed 3 | . . 2 . . . . 1 Kicked . | . . . . . . . . Crushed . | . . . . . . . . Highest Temperature 186 | 80 186 32 . . . 63 82 Average Temperature 50 | 31 76 18 . . . 21 18 Received Heat Transfer 1137 | . 129 27 . . 90 99 792 Siege Activations . | . . . . . . . . Robots Corrupted 2 | . . . . . . 1 1 Combat Hostiles . | . . . . . . . . Parts Fried 1 | . . . . . . . 1 Impact Corruptions . | . . . . . . . . Robots Melted . | . . . . . . . . Combat Hostiles . | . . . . . . . . Parts Melted 1 | . . . . . . . 1 Heat Transferred 3033 | 444 1051 100 . 50 100 400 888 Parts Sabotaged . | . . . . . . . . Parts Stolen . | . . . . . . . . Parts Stripped . | . . . . . . . . Power Chain Reactions 9 | . . 1 . . 1 5 2 Missiles Intercepted . | . . . . . . . . Alert | -11 -10 -10 -10 -9 -8 -8 -8 ------- Run | Scr Mat Min Exi Min Mat Gar Mat Peak Influence 687 | 15 236 212 . 166 476 687 678 Average Influence 277 | 1 126 75 . 113 360 483 379 Maximum Alert Level 2 | . 1 1 . . 2 2 2 Low Security (%) 35 | 100 73 86 . 100 13 . . Level 1 37 | . 27 13 . . 39 25 68 Level 2 27 | . . . . . 47 74 31 Level 3 . | . . . . . . . . Level 4 . | . . . . . . . . Level 5 . | . . . . . . . . High Security . | . . . . . . . . Max Security . | . . . . . . . . Squads Dispatched 7 | . 2 . . . 1 . 4 Investigation 3 | . 1 . . . . . 2 Extermination . | . . . . . . . . Reinforcement 3 | . 1 . . . 1 . 1 Assault 1 | . . . . . . . 1 Garrison . | . . . . . . . . Intercept . | . . . . . . . . Construction Impeded 1 | . . . . . . . 1 Haulers Reinforced . | . . . . . . . . Stealth | -11 -10 -10 -10 -9 -8 -8 -8 --------- Run | Scr Mat Min Exi Min Mat Gar Mat Distress Signals 5 | . . . . 1 . . 4 Communications Jammed . | . . . . . . . . Distress Signals . | . . . . . . . . Times Spotted 90 | . 11 9 . 3 13 14 40 Peak Tracking Total 9 | . 4 3 . 2 4 3 9 Tactical Retreats 7 | . 1 1 . . . 3 2 Traps | -11 -10 -10 -10 -9 -8 -8 -8 ------- Run | Scr Mat Min Exi Min Mat Gar Mat Traps Triggered 6 | . 1 . . . . 2 3 Indirectly . | . . . . . . . . Trap Hack Attempts . | . . . . . . . . Triggered . | . . . . . . . . Disarmed . | . . . . . . . . Reprogrammed . | . . . . . . . . Reused . | . . . . . . . . Traps Extracted . | . . . . . . . . Installed . | . . . . . . . . Triggered . | . . . . . . . . Exploded 1 | . . . 1 . . . . Machines | -11 -10 -10 -10 -9 -8 -8 -8 ---------- Run | Scr Mat Min Exi Min Mat Gar Mat Machines Disabled 11 | . 1 . . 1 2 2 5 Max in Single Turn 2 | . 1 . . 1 1 1 2 Garrison Relay 2 | . . . . . . 2 . Machines Sabotaged . | . . . . . . . . Garrisons Compromised . | . . . . . . . . Overloaded Fab Kills . | . . . . . . . . Fab Network Shutdowns . | . . . . . . . . Hacking | -11 -10 -10 -10 -9 -8 -8 -8 --------- Run | Scr Mat Min Exi Min Mat Gar Mat Machines Accessed 15 | . . . 2 . 3 . 10 Terminals 9 | . . . . . 1 . 8 Fabricators . | . . . . . . . . Repair Stations . | . . . . . . . . Recycling Units . | . . . . . . . . Scanalyzers 3 | . . . . . 1 . 2 Garrison Access 1 | . . . . . 1 . . Total Hacks 43 | . . . 11 . 4 . 28 Successful 31 | . . . 11 . 3 . 17 Failed 12 | . . . . . 1 . 11 Catastrophic 1 | . . . . . . . 1 Database Lockouts . | . . . . . . . . Manual 1 | . . . 1 . . . . Terminals 25 | . . . . . 2 . 23 Fabricators . | . . . . . . . . Repair Stations . | . . . . . . . . Recycling Units . | . . . . . . . . Scanalyzers 6 | . . . . . 1 . 5 Garrison Access 1 | . . . . . 1 . . Terminal Hacks 27 | . . . 11 . 2 . 14 Record 11 | . . . 10 . . . 1 Branch Access Points 1 | . . . . . . . 1 Alert Level 1 | . . . . . . . 1 Locate Traps 1 | . . . . . . . 1 Dispatch Records 2 | . . . . . . . 2 Maintenance Status 1 | . . . . . . . 1 Transport Status 1 | . . . . . . . 1 Recall Investigation 2 | . . . . . 1 . 1 Hauler Manifests 1 | . . . . . . . 1 Registered Components 1 | . . . . . . . 1 Registered Prototypes 1 | . . . . . . . 1 Zone Layout 3 | . . . . . 1 . 2 EX-Prototype ID Bank 1 | . . . 1 . . . . Fabricator Hacks . | . . . . . . . . Repair Station Hacks . | . . . . . . . . Recycling Unit Hacks . | . . . . . . . . Scanalyzer 3 | . . . . . . . 3 Insert Component 1 | . . . . . . . 1 Analyze 2 | . . . . . . . 2 Garrison Access Hacks 1 | . . . . . 1 . . Unlock Access 1 | . . . . . 1 . . Unauthorized Hacks . | . . . . . . . . Terminals . | . . . . . . . . Fabricators . | . . . . . . . . Repair Stations . | . . . . . . . . Recycling Units . | . . . . . . . . Scanalyzers . | . . . . . . . . Garrison Access . | . . . . . . . . Data Cores Recovered 1 | . . . . . . . 1 Used . | . . . . . . . . Hacking Detections 12 | . . . . . 2 . 10 Full Trace Events 2 | . . . . . . . 2 Feedback Events . | . . . . . . . . Feedback Blocked . | . . . . . . . . Robot Schematics Acquired . | . . . . . . . . Robots Built . | . . . . . . . . Matter . | . . . . . . . . Time . | . . . . . . . . Total Robot Build Rating . | . . . . . . . . Part Schematics Acquired 1 | . . . . . . . 1 Parts Built . | . . . . . . . . Matter . | . . . . . . . . Time . | . . . . . . . . Total Part Build Rating . | . . . . . . . . Parts Repaired . | . . . . . . . . Time . | . . . . . . . . Parts Recycled . | . . . . . . . . Recycled Matter . | . . . . . . . . Retrieved Matter . | . . . . . . . . Retrieved Components . | . . . . . . . . Parts Scanalyzed 1 | . . . . . . . 1 Part Schematics Acquired 1 | . . . . . . . 1 Parts Damaged . | . . . . . . . . Bothacking | -11 -10 -10 -10 -9 -8 -8 -8 ------------ Run | Scr Mat Min Exi Min Mat Gar Mat Used RIF Installer 1 | . . . . . . 1 . Robots Hacked . | . . . . . . . . Non-combat . | . . . . . . . . Combat . | . . . . . . . . Robot Hacks Applied . | . . . . . . . . Relay Couplers Released 8 | . . . . . . 8 . Machine Destruction 8 | . . . . . . 8 . Robots Rewired . | . . . . . . . . Allies Hacked . | . . . . . . . . Hacks Repelled . | . . . . . . . . Allies | -11 -10 -10 -10 -9 -8 -8 -8 -------- Run | Scr Mat Min Exi Min Mat Gar Mat Total Allies 5 | . . 3 . 2 . . . Largest Group 3 | . . 3 2 3 3 . . Highest-Rated Group 53 | . . 40 32 53 53 . . Highest-Rated Ally 31 | . . 16 16 31 31 . . Total Orders . | . . . . . . . . Ally Attacks 38 | . . 21 . 2 15 . . Total Damage 450 | . . 217 . 31 202 . . Kills 11 | . . 7 . 1 3 . . Allies Corrupted . | . . . . . . . . Allies Melted . | . . . . . . . . Intel | -11 -10 -10 -10 -9 -8 -8 -8 ------- Run | Scr Mat Min Exi Min Mat Gar Mat Robot Analysis Total . | . . . . . . . . Derelict Logs Recovered 2 | . . 1 . 1 . . . Drone Launches . | . . . . . . . . Drone Recoveries . | . . . . . . . . Exploration | -11 -10 -10 -10 -9 -8 -8 -8 ------------- Run | Scr Mat Min Exi Min Mat Gar Mat Turns Passed 5270 | 109 500 1181 461 154 361 807 1697 Spaces Moved 2475 | 45 236 649 208 72 170 395 700 Core 4 | 4 . . . . . . . Treads 2416 | 41 236 649 208 72 115 395 700 Legs 55 | . . . . . 55 . . Wheels . | . . . . . . . . Hover . | . . . . . . . . Flight . | . . . . . . . . Fastest Speed 50 | 50 160 160 180 180 150 180 180 Average Speed 173 | 150 160 168 180 180 162 180 180 Slowest Speed 220 | 160 160 180 180 180 180 180 220 Overloaded Moves . | . . . . . . . . Propulsion Burnouts . | . . . . . . . . Robots Hopped . | . . . . . . . . Cave-ins Triggered . | . . . . . . . . Exploration Rate (%) 47 | 6 52 97 60 28 21 44 72 Regions Visited 7 Branch Regions 3 Pre-discovered Areas 2 | . . . 1 1 . . . Known Exits Taken 1 | . . . . . 1 . . Unknown Exits Taken 5 | 1 1 1 1 1 . . . Scrap Searched 3 | . . 2 . 1 . . . Spaces Dug 14 | . . . . . . . 14 Terrain Destroyed 349 | . 33 61 . 71 32 13 139 Melee . | . . . . . . . . Projectile . | . . . . . . . . AOE 349 | . 33 61 . 71 32 13 139 Actions | -11 -10 -10 -10 -9 -8 -8 -8 --------- Run | Scr Mat Min Exi Min Mat Gar Mat Total 3152 | 70 290 723 295 87 235 456 996 Wait 292 | . . 55 87 6 1 5 138 Move 2469 | 44 235 648 207 71 170 394 700 Hop . | . . . . . . . . Pick Up 55 | 5 7 5 1 . 14 7 16 Fast Attach 15 | 6 . 1 . . 2 . 6 Attach 27 | 1 1 2 . . 5 1 17 Detach 1 | . . . . . . . 1 Swap 29 | . 3 . . . 10 6 10 Drop 48 | . 2 2 . . 12 9 23 Fire 200 | 14 42 8 . 10 21 21 84 Melee . | . . . . . . . . Ram . | . . . . . . . . Kick . | . . . . . . . . Crush 3 | . . 2 . . . . 1 Escape Stasis 2 | . . . . . . 2 . Rewire 11 | . . . . . . 11 . Trap . | . . . . . . . . Miscellaneous . | . . . . . . . . Route ------- -11/Scrapyard -10/Materials (discovered 3 exits: [*Mat] / [*Min x2]) -10/Mines (discovered 3 exits: [*Mat x2] / *Exi) -10/Exiles -9/Mines -8/Materials (discovered 2 exits: *Sto / Gar) -8/Garrison -8/Materials (discovered 3 exits: [*Fac] / *Sto x2) History --------- Turn | Location | Event 8 | -11/Scrapyard | Discovered new exit (range 14) 110 | -11/Scrapyard | Entered Materials 120 | -10/Materials | Discovered new exit (range 16) 275 | -10/Materials | Discovered new exit (range 8) 303 | -10/Materials | Build established: Mutant 600 | -10/Materials | Discovered new exit (range 7) 610 | -10/Materials | Entered Mines 611 | -10/Mines | Met a Derelict testing a Signal Generator 617 | -10/Mines | Found Signal Generator 1115 | -10/Mines | Assisted by bots powering up and referring to "LRC-V3" 1209 | -10/Mines | Received a Rocket Launcher from a helpful Derelict 1270 | -10/Mines | Discovered new exit (range 11) 1325 | -10/Mines | Learned 2 Materials zone layouts 1607 | -10/Mines | Discovered new exit (range 6) 1778 | -10/Mines | Deemed a non-threat by the Exiles lab entrance 1780 | -10/Mines | Discovered new exit (range 5) 1791 | -10/Mines | Entered Exiles 1791 | -10/Exiles | Accompanied by 2 allies 1840 | -10/Exiles | Met 8R-AWN 1865 | -10/Exiles | Met EX-HEX 1916 | -10/Exiles | Met EX-BIN 1937 | -10/Exiles | Aligned with FarCom system 1939 | -10/Exiles | Given EX-Vault access code 1982 | -10/Exiles | Opened EX-Vault 1995 | -10/Exiles | Found Cloak of Protection 2034 | -10/Exiles | Warned to stay clear of 0b10 Research branches 2056 | -10/Exiles | Exiles lab attacked by MAIN.C 2091 | -10/Exiles | Learned location of Zion (-6) 2145 | -10/Exiles | Discovered new exit (range 12) 2252 | -10/Exiles | Left Exiles lab with Cloak of Protection 2252 | -10/Exiles | Entered Mines 2252 | -9/Mines | Accompanied by 2 allies 2347 | -9/Mines | Excavation squad dispatched 2347 | -9/Mines | A large section of the Mines collapsed 2372 | -9/Mines | Discovered new exit (range 12) 2406 | -9/Mines | Entered Materials 2406 | -8/Materials | Accompanied by 3 allies 2406 | -8/Materials | Evolved 4 slots: Utility x4 2411 | -8/Materials | Led the pair of lost Derelicts to an unsafe place 2479 | -8/Materials | Discovered new exit (range 15) 2528 | -8/Materials | Identified exit to Storage 2767 | -8/Materials | Identified exit to Garrison 2767 | -8/Materials | Entered Garrison 2776 | -8/Garrison | Installed Relay Interface Framework 2882 | -8/Garrison | Triggered checkpoint 2901 | -8/Garrison | Build established: Scavenger-Mutant 3344 | -8/Garrison | Triggered checkpoint 3416 | -8/Garrison | Triggered checkpoint 3476 | -8/Garrison | Garrison Relay disabled 3556 | -8/Garrison | Discovered new exit (range 8) 3574 | -8/Garrison | Entered Materials 4126 | -8/Materials | Build established: Hauler-Mutant 4413 | -8/Materials | Discovered new exit (range 5) 4616 | -8/Materials | Discovered exit to Storage (range 15) 4976 | -8/Materials | Core integrity fell below 50% 5174 | -8/Materials | First assault squad dispatched 5193 | -8/Materials | Build established: Scavenger-Mutant 5269 | -8/Materials | Core integrity fell below 20% 5271 | -8/Materials | Destroyed self with Missile Launcher Last Messages --------------- 05257_ Slug penetrates Y-45 Defender. 05258_ Lgt. Nuclear Core destroyed. 05259_ Gauss Rifle destroyed. 05260_ System corrupted: EM Pulse Cannon rejected. 05261_ C-30 ARC bursts open, deploying its payload. 05261_ G-47 Trooper unfolds itself. 05261_ L-31 Rogue unfolds itself. 05261_ M-28 Smith unfolds itself. 05262_ Electrolaser destroyed. 05264_ System corrupted: Hvy. Missile Launcher targeting data glitched. 05264_ M-28 Smith destroyed. 05264_ G-47 Trooper destroyed. 05264_ Destroyed Lgt. Deuterium Engine. 05266_ The unstable cave ceiling collapses. 05266_ Hvy. Missile Launcher destroyed. 05266_ Destroyed Hvy. Missile Launcher. 05269_ Dropped Signal Generator. 05271_ Y-45 Defender destroyed. 05271_ L-31 Rogue destroyed. [Achievement: Tester] Map ----- +----------------------------------------------------+ | ??????????????????????????????????????? | | ??????????????????????????????????????? | | ???????????? #?????????# #??????????? | | ???????????? #?????????# #??????????? | | ???????????? #??????#### ####???????? | | ???????????? ######## ## ## #######?? | | ???????????? ## # # #?? | | ???????????? ## "" # # """ #?? | | ???? ?????+## T" # """ #?? | | ???? #???? # "" # """ #?? | | ???? #???? # #?? | | ???? #???? # """ # """ #?? | | ???? #???? # """ """ #?? | | ???? #????" # """ """ #?? | | ???? +????" # Y #?? | | ????# #???########## Y #########?? | | ##### ##?T #??# #?????????? | | # # !#??# T#?????????? | | # + ! #??? #??###????? | | # * # #???? = #### #####? | | ! ##???############ / #? | | ########## # # /// #? | | " "" # # # // #? | | " T"= #??"""" % # """ #? | | " "" #?""""" w Y """ #? | | =!#?""""" !@&# """ #? | | [! #?""""" g%% # #? | | ######%#?""""" g # #? | | ######+#?""""" #############? | | """""[#??"""" * % % #???????? | | ""T"" #? = #???????? | | [########## == """ ##??????? | | ## # # == """ #??????? | | ## !# # """ ????????? | | """ ## """ # # #???????? | | " " ! # """ # # = ! ! #???????? | | ## """ # # #???????? | | # !# ###########???????? | | # # ####+### #?????????????????? | | #?????????????????? | | * = #?????????????????? | | #?????????????????? | | ###+#######?????????????????? | | ] ### #??????????????????? | | ] !!== #?# " #??????????????????? | | ][!!==##?# T #??????????????????? | | #######??# " """ #??????????????????? | | ?????????# """"" #??????????????????? | | ?????????# """"" #??????????????????? | | ?????????#= """"" #??????????????????? | +----------------------------------------------------+ Best States ------------- Heat Dissipation 45 Energy Generation 14 Energy Capacity 250 Matter Stores 300 Matter Capacity 300 Sight Range 16 Terrain Scan Density 10 Additional Mass Support 9 Base Temperature (-) 100 Armor Coverage 600 Evasion (%) 40 Target Analysis 5 Recoil Reduction 2 Item Schematics ----------------- Spear | -8/Materials | Scanalyzed Robot Schematics ------------------ None Fabricated ------------ Nothing Alien Tech Used ----------------- None Achievements -------------- Tester Challenges ------------ None Game ------ Seed MassThermalSplitter Manual? 0 Play Time 00:45:00 Cumulative 71.0 hours Start 2019.12.11 @ 14:54:51 End 2019.12.11 @ 15:38:58 Sessions 1 Manual Loads 0 Difficulty Rogue Special Mode None Game No. 62 Rogue 62 Adventurer 0 Explorer 0 Win Type - Total 0 Types 0/0/0/0/0/0/0 Lore% 41 Gallery% 50 Achievement% 34 Wizard Run 0 Options --------- ASCII 0 Keyboard 0 Movement Numpad Keybinds 0 Fullscreen 1 Font 18/SmallcapsGlow Map View 76x50 Tactical HUD 1 Map Filters NONE Filters NONE Steam 1 RUN: 644cb7b5-67a4-449e-b3a9-65a2ef168810